bitfinex-derivatives/quotes_SOLF0:USTF0_20241002
["timestamp","ask_amount","ask_price","bid_price","bid_amount"]
[1727848464095,8.39,146.43,146.36,1.3736]
[1727848464398,8.39,146.41,146.36,9.7636]
[1727848464599,8.39,146.42,146.37,8.39]
[1727848466196,11.1223,146.42,146.39,2.7327]
[1727848466701,8.39,146.42,146.37,8.39]
[1727848466899,8.39,146.41,146.36,1.3736]
[1727848467201,8.39,146.4,146.36,1.3736]
[1727848467392,8.39,146.4,146.37,2.733]
[1727848467393,11.1226,146.4,146.37,2.733]
[1727848468397,11.1226,146.4,146.38,2.733]
[1727848468598,8.39,146.4,146.38,2.733]
[1727848469301,8.39,146.41,146.39,2.7328]
[1727848470095,11.1224,146.41,146.39,2.7328]
[1727848470799,11.1224,146.41,146.36,9.7636]
[1727848471000,11.1224,146.41,146.37,2.7331]
[1727848471601,11.1224,146.41,146.36,9.7636]
[1727848471602,8.39,146.41,146.36,9.7636]
[1727848471797,2.7326,146.4,146.36,12.4968]
[1727848475598,11.1225,146.41,146.37,2.7331]
[1727848476404,8.39,146.4,146.37,2.7331]
[1727848476593,11.1226,146.4,146.36,1.3736]
[1727848476798,11.1226,146.4,146.36,4.1069]
[1727848477200,8.39,146.4,146.36,1.3736]
[1727848477398,8.39,146.38,146.36,1.3736]
[1727848477601,8.39,146.37,146.33,1.40412]
[1727848477998,8.39,146.37,146.34,2.7337]
[1727848483305,8.39,146.37,146.33,1.40412]
[1727848483507,2.7334,146.36,146.33,1.40412]
[1727848484499,11.1232,146.37,146.33,4.13792]
[1727848487300,2.7334,146.36,146.33,0.12502]
[1727848487504,11.1234,146.36,146.33,0.12502]
[1727848489115,2.7336,146.35,146.33,0.12502]
[1727848491012,3.36442004,146.41,146.33,2.85892]
[1727848491013,8.39,146.37,146.33,2.85892]
[1727848491715,8.39,146.37,146.33,0.12502]
[1727848492114,8.39,146.36,146.33,0.12502]
[1727848492615,2.7337,146.35,146.33,0.12502]
[1727848496020,8.39,146.36,146.33,0.12502]
[1727848496212,11.1234,146.36,146.33,2.85892]
[1727848496414,11.1234,146.36,146.33,0.12502]
[1727848496415,8.39,146.36,146.33,0.12502]
[1727848497120,2.7335,146.35,146.33,0.12502]
[1727848499119,8.39,146.36,146.33,0.12502]
[1727848499320,11.1237,146.34,146.33,0.12502]
[1727848502819,8.39,146.35,146.33,0.12502]
[1727848503021,1.3191,146.43,146.33,0.12502]
[1727848503222,1.3191,146.43,146.33,8.51502]
[1727848503421,8.39,146.37,146.33,0.12502]
[1727848504027,2.7335,146.36,146.33,2.85882]
[1727848504719,11.1232,146.37,146.34,2.7337]
[1727848504923,2.7332,146.37,146.34,2.7337]
[1727848505320,2.7332,146.37,146.33,12.60942]
[1727848506431,1.3191,146.43,146.35,8.39]
[1727848506620,1.3191,146.43,146.39,8.39]
[1727848506821,75.1696,146.44,146.39,8.39]
[1727848507028,2.7327,146.4,146.36,2.7332]
[1727848507231,2.7327,146.4,146.37,8.39]
[1727848507434,8.39,146.43,146.34,2.697]
[1727848507728,8.39,146.41,146.37,8.39]
[1727848508131,11.1224,146.41,146.38,8.39]
[1727848508534,8.39,146.43,146.38,8.39]
[1727848508830,2.7323,146.42,146.38,11.1229]
[1727848509227,2.7324,146.41,146.38,11.1229]
[1727848509432,1.3696,146.44,146.37,8.39]
[1727848509433,8.39,146.42,146.37,8.39]
[1727848509932,8.39,146.43,146.38,8.39]
[1727848511234,2.7324,146.41,146.38,8.39]
[1727848511437,8.39,146.43,146.38,8.39]
[1727848511736,2.7321,146.43,146.4,8.39]
[1727848511932,2.7321,146.43,146.34,2.697]
[1727848511933,2.7321,146.43,146.39,8.39]
[1727848512134,2.7321,146.43,146.39,11.1227]
[1727848512637,2.7321,146.43,146.4,2.7325]
[1727848513926,75.74399241,146.45,146.41,8.39]
[1727848514739,2.732,146.44,146.41,8.39]
[1727848515731,2.7323,146.42,146.37,2.7331]
[1727848515926,8.39,146.43,146.38,8.39]
[1727848516736,2.7323,146.42,146.39,8.39]
[1727848517245,75.74399241,146.45,146.4,8.39]
[1727848517937,2.732,146.44,146.41,2.7324]
[1727848518546,2.732,146.44,146.4,11.1225]
[1727848520039,2.7321,146.43,146.4,8.39]
[1727848520440,2.7321,146.43,146.4,11.1226]
[1727848522537,75.74399241,146.45,146.4,8.39]
[1727848522735,75.74399241,146.45,146.44,8.39]
[1727848522736,0.12502,146.45,146.44,8.39]
[1727848523241,0.12502,146.45,146.44,11.1219]
[1727848523747,2.85672,146.45,146.41,11.1223]
[1727848524042,0.12502,146.45,146.4,8.39]
[1727848524238,2.7321,146.43,146.4,8.39]
[1727848525239,2.7321,146.43,146.4,11.1225]
[1727848526439,0.12502,146.45,146.4,11.1225]
[1727848526745,2.7319,146.44,146.4,11.1225]
[1727848527140,0.12502,146.45,146.4,11.1225]
[1727848528035,2.732,146.44,146.4,11.1225]
[1727848528641,0.12502,146.45,146.4,11.1225]
[1727848528842,2.7321,146.43,146.4,11.1225]
[1727848529642,2.732,146.44,146.41,2.7323]
[1727848530150,0.12502,146.45,146.43,8.39]
[1727848530445,0.12502,146.45,146.44,11.1219]
[1727848540460,8.51502,146.51,146.46,2.7314]
[1727848540461,0.12502,146.51,146.46,2.7314]
[1727848540648,0.12502,146.51,146.48,8.39]
[1727848542046,2.7309,146.5,146.48,8.39]
[1727848543850,0.12502,146.51,146.48,8.39]
[1727848546353,2.7309,146.49,146.48,8.39]
[1727848546556,8.51502,146.51,146.46,8.39]
[1727848546950,2.7312,146.48,146.46,8.39]
[1727848547748,0.12502,146.51,146.47,8.39]
[1727848547960,2.731,146.49,146.47,8.39]
[1727848548657,0.12502,146.51,146.47,8.39]
[1727848549060,2.7311,146.49,146.47,8.39]
[1727848550556,0.12502,146.51,146.47,8.39]
[1727848550755,0.12502,146.51,146.49,8.39]
[1727848550957,2.85572,146.51,146.49,8.39]
[1727848551763,0.12502,146.51,146.49,8.39]
[1727848552752,2.731,146.49,146.46,4.0831]
[1727848553068,8.51502,146.51,146.46,9.7417]
[1727848553251,2.731,146.49,146.46,9.7417]
[1727848553564,8.51502,146.51,146.46,1.3517]
[1727848553757,8.51502,146.51,146.46,9.7417]
[1727848554158,2.7311,146.49,146.46,9.7417]
[1727848554767,2.7311,146.49,146.47,8.39]
[1727848557758,2.7311,146.49,146.46,1.3517]
[1727848557759,2.7308,146.5,146.46,9.7417]
[1727848557959,0.12502,146.51,146.46,9.7417]
[1727848558366,2.7312,146.48,146.46,9.7417]
[1727848558671,0.12502,146.51,146.46,9.7417]
[1727848559060,2.7312,146.48,146.46,9.7417]
[1727848560257,2.7311,146.49,146.47,8.39]
[1727848561765,0.12502,146.51,146.47,8.39]
[1727848561966,0.12502,146.51,146.49,8.39]
[1727848562469,2.731,146.49,146.48,8.39]
[1727848564069,0.12502,146.51,146.46,1.3517]
[1727848564373,2.7313,146.47,146.45,8.39]
[1727848564978,2.7319,146.44,146.42,2.6501]
[1727848565183,2.7319,146.44,146.42,9.6939]
[1727848565372,8.39,146.48,146.42,9.6939]
[1727848565570,8.51502,146.51,146.46,8.39]
[1727848566073,2.7308,146.5,146.47,11.1212]
[1727848566379,0.12502,146.51,146.49,8.39]
[1727848567370,2.7307,146.5,146.49,8.39]
[1727848568182,0.12502,146.51,146.49,8.39]
[1727848568486,2.85562,146.51,146.49,8.39]
[1727848568975,2.85562,146.51,146.5,8.39]
[1727848568976,0.12502,146.51,146.5,8.39]
[1727848570574,0.12502,146.51,146.5,11.1207]
[1727848571980,0.12502,146.51,146.5,8.39]
[1727848577191,0.12502,146.51,146.5,11.1207]
[1727848578988,0.12502,146.51,146.5,8.39]
[1727848579494,0.12502,146.51,146.49,8.39]
[1727848580786,2.85572,146.51,146.49,8.39]
[1727848581589,0.12502,146.51,146.5,8.39]
[1727848583291,0.12502,146.51,146.5,11.1207]
[1727848583594,0.12502,146.51,146.5,8.39]
[1727848587789,2.85552,146.51,146.5,8.39]
[1727848591691,0.12502,146.51,146.5,8.39]
[1727848598907,0.12502,146.51,146.5,11.1207]
[1727848603910,0.12502,146.51,146.5,8.39]
[1727848605010,2.85552,146.51,146.49,8.39]
[1727848605199,0.12502,146.51,146.47,8.39]
[1727848605615,2.731,146.49,146.47,8.39]
[1727848607813,0.12502,146.51,146.46,8.39]
[1727848607814,8.51502,146.51,146.46,8.39]
[1727848608810,0.12502,146.51,146.48,8.39]
[1727848609308,2.7309,146.5,146.48,8.39]
[1727848610906,2.7307,146.5,146.48,8.39]
[1727848612606,2.7307,146.5,146.47,8.39]
[1727848613114,0.12502,146.51,146.47,8.39]
[1727848613303,2.731,146.49,146.47,8.39]
[1727848613801,0.12502,146.51,146.47,8.39]
[1727848614000,0.12502,146.51,146.48,8.39]
[1727848614611,2.7309,146.5,146.48,8.39]
[1727848615018,2.7309,146.49,146.47,8.39]
[1727848621106,0.12502,146.51,146.48,8.39]
[1727848621419,0.12502,146.51,146.5,8.39]
[1727848621420,2.85562,146.51,146.5,8.39]
[1727848622420,2.7309,146.49,146.47,8.39]
[1727848623318,0.12502,146.51,146.48,8.39]
[1727848623513,0.12502,146.51,146.43,1.258]
[1727848623514,0.12502,146.51,146.5,8.39]
[1727848624316,0.12502,146.51,146.5,11.1207]
[1727848625216,0.12502,146.51,146.5,12.4192]
[1727848625424,0.12502,146.57,146.5,9.6885]
[1727848625618,0.12502,146.57,146.56,8.39]
[1727848625819,2.85452,146.57,146.56,8.39]
[1727848626617,0.12502,146.57,146.55,8.39]
[1727848626912,0.12502,146.57,146.52,8.39]
[1727848626913,8.51502,146.57,146.52,8.39]
[1727848628023,2.73,146.55,146.52,8.39]
[1727848628222,8.51502,146.57,146.51,1.3609]
[1727848628426,8.51502,146.57,146.51,8.39]
[1727848628427,2.7302,146.53,146.51,8.39]
[1727848629025,2.7304,146.52,146.51,8.39]
[1727848629630,8.39,146.55,146.51,8.39]
[1727848629819,2.73,146.54,146.51,8.39]
[1727848630215,8.51502,146.57,146.51,8.39]
[1727848631123,2.7303,146.53,146.51,8.39]
[1727848632124,8.51502,146.57,146.51,8.39]
[1727848632426,8.51502,146.57,146.54,8.39]
[1727848632427,2.7299,146.55,146.54,8.39]
[1727848633823,2.7299,146.55,146.52,11.1203]
[1727848634029,0.12502,146.57,146.53,8.39]
[1727848634236,2.7297,146.56,146.53,8.39]
[1727848634431,2.7297,146.56,146.53,11.1201]
[1727848634824,2.7297,146.56,146.53,8.39]
[1727848644529,2.85452,146.57,146.55,8.39]
[1727848644731,0.12502,146.57,146.56,8.39]
[1727848646833,2.85442,146.57,146.56,8.39]
[1727848651739,2.7296,146.56,146.55,1.2739]
[1727848665254,2.85452,146.57,146.55,9.6639]
[1727848665658,0.12502,146.57,146.55,9.6639]
[1727848665861,0.12502,146.57,146.55,12.3936]
[1727848666556,0.12502,146.57,146.55,9.6639]
[1727848666862,0.12502,146.57,146.56,2.7296]
[1727848668161,2.7289,146.6,146.57,2.7294]
[1727848668462,2.7289,146.6,146.59,8.39]
[1727848669261,0.12502,146.63,146.59,8.39]
[1727848669567,2.7285,146.62,146.61,8.39]
[1727848670462,2.85342,146.63,146.61,8.39]
[1727848670763,2.85342,146.63,146.62,8.39]
[1727848671160,0.12502,146.63,146.61,8.39]
[1727848671365,2.7286,146.62,146.61,8.39]
[1727848678063,2.85342,146.63,146.61,8.39]
[1727848678367,0.12502,146.63,146.62,8.39]
[1727848679272,2.85332,146.63,146.62,8.39]
[1727848680366,8.51502,146.63,146.58,8.39]
[1727848680758,2.7292,146.58,146.57,8.39]
[1727848681366,2.7292,146.58,146.55,1.2739]
[1727848681367,2.7296,146.56,146.55,9.6639]
[1727848684866,2.7296,146.56,146.55,8.39]
[1727848685073,2.7299,146.55,146.54,8.39]
[1727848685576,8.39,146.59,146.54,8.39]
[1727848685766,2.7297,146.56,146.55,8.39]
[1727848687967,8.39,146.61,146.55,8.39]
[1727848688663,2.7296,146.57,146.55,8.39]
[1727848693484,2.7292,146.59,146.56,8.39]
[1727848693687,0.12502,146.63,146.58,8.39]
[1727848693874,0.12502,146.63,146.61,8.39]
[1727848694296,2.7286,146.62,146.61,8.39]
[1727848694675,0.12502,146.63,146.61,8.39]
[1727848694879,2.85342,146.63,146.61,8.39]
[1727848702588,0.12502,146.63,146.62,8.39]
[1727848705285,0.12502,146.63,146.62,11.1185]
[1727848706693,0.12502,146.63,146.62,8.39]
[1727848717205,0.12502,146.63,146.62,11.1185]
[1727848719406,0.12502,146.63,146.59,3.8984]
[1727848719615,2.85332,146.63,146.6,2.7288]
[1727848719808,2.85332,146.63,146.62,8.39]
[1727848719809,0.12502,146.63,146.62,8.39]
[1727848731426,2.85332,146.63,146.6,2.7289]
[1727848731721,2.85332,146.63,146.62,8.39]
[1727848732422,0.12502,146.63,146.62,8.39]
[1727848739312,0.12502,146.63,146.62,11.1185]
[1727848740420,0.12502,146.63,146.62,8.39]
[1727848742027,0.12502,146.63,146.59,3.8984]
[1727848742219,0.12502,146.63,146.62,8.39]
[1727848745322,2.85332,146.63,146.62,8.39]
[1727848750022,0.12502,146.63,146.62,8.39]
[1727848751834,0.12502,146.63,146.62,11.1185]
[1727848752832,2.7277,146.67,146.63,2.7283]
[1727848753033,2.7277,146.67,146.66,8.39]
[1727848759547,2.7278,146.66,146.65,8.39]
[1727848759844,8.51502,146.69,146.62,2.7284]
[1727848760042,8.51502,146.69,146.63,8.39]
[1727848760543,2.728,146.65,146.63,8.39]
[1727848762240,2.728,146.65,146.64,8.39]
[1727848767353,2.7279,146.66,146.64,8.39]
[1727848767553,0.12502,146.69,146.65,8.39]
[1727848767856,0.12502,146.69,146.68,8.39]
[1727848768050,2.85222,146.69,146.68,8.39]
[1727848770248,0.12502,146.69,146.68,8.39]
[1727848772350,2.85222,146.69,146.68,8.39]
[1727848776854,0.12502,146.69,146.68,8.39]
[1727848777154,0.12502,146.69,146.68,11.1174]
[1727848781677,0.12502,146.69,146.68,8.39]
[1727848782571,0.12502,146.69,146.67,1.2705]
[1727848782873,0.12502,146.69,146.68,8.39]
[1727848791075,2.7269,146.71,146.68,8.39]
[1727848791374,2.7269,146.71,146.7,8.39]
[1727848800375,2.7271,146.7,146.67,5.3262]
[1727848800591,2.7271,146.7,146.69,8.39]
[1727848802487,0.12502,146.75,146.69,8.39]
[1727848802679,0.12502,146.75,146.73,8.39]
[1727848803282,2.7263,146.74,146.73,8.39]
[1727848804180,0.12502,146.75,146.73,8.39]
[1727848804487,0.12502,146.75,146.74,8.39]
[1727848805286,3.48993482,146.75,146.63,0.12502]
[1727848805484,8.39,146.71,146.66,8.39]
[1727848805683,8.39,146.7,146.64,1.3003]
[1727848805901,8.39,146.7,146.63,8.51502]
[1727848806186,8.39,146.68,146.63,0.12502]
[1727848806383,8.39,146.67,146.63,0.12502]
[1727848806584,2.7259,146.74,146.63,0.12502]
[1727848806585,2.7281,146.64,146.63,0.12502]
[1727848807187,2.7259,146.74,146.63,8.51502]
[1727848807392,2.7259,146.74,146.66,8.39]
[1727848807393,8.39,146.71,146.66,8.39]
[1727848807884,2.7276,146.67,146.66,8.39]
[1727848811996,2.728,146.65,146.64,8.39]
[1727848812588,6.17516742,146.74,146.64,8.39]
[1727848812589,2.7275,146.68,146.64,8.39]
[1727848812788,8.39,146.71,146.66,8.39]
[1727848813489,2.7276,146.67,146.66,8.39]
[1727848813789,8.39,146.71,146.66,8.39]
[1727848813989,2.7259,146.74,146.67,8.39]
[1727848814293,2.7259,146.74,146.7,8.39]
[1727848814492,2.7259,146.74,146.71,8.39]
[1727848814695,0.12502,146.75,146.71,8.39]
[1727848815093,2.7268,146.72,146.71,8.39]
[1727848815302,0.12502,146.75,146.71,8.39]
[1727848815599,0.12502,146.75,146.73,8.39]
[1727848816198,2.7263,146.74,146.73,8.39]
[1727848816895,8.51502,146.75,146.71,8.39]
[1727848817393,2.7266,146.72,146.71,8.39]
[1727848819395,8.51502,146.75,146.71,8.39]
[1727848819396,0.12502,146.75,146.71,8.39]
[1727848819595,0.12502,146.75,146.72,8.39]
[1727848820302,2.7265,146.73,146.72,8.39]
[1727848821400,0.12502,146.75,146.72,8.39]
[1727848821699,2.85122,146.75,146.73,8.39]
[1727848822095,2.7263,146.74,146.71,2.7268]
[1727848822294,0.12502,146.75,146.72,8.39]
[1727848823008,2.7265,146.73,146.72,8.39]
[1727848824006,2.7268,146.71,146.7,8.39]
[1727848824900,2.7273,146.69,146.68,8.39]
[1727848825204,8.39,146.73,146.67,8.39]
[1727848825394,2.7274,146.68,146.67,8.39]
[1727848825906,2.7273,146.69,146.67,8.39]
[1727848826319,8.39,146.71,146.65,9.6519]
[1727848826606,2.7276,146.67,146.65,9.6519]
[1727848827695,8.39,146.71,146.65,1.2619]
[1727848827994,8.39,146.69,146.64,57.62121978]
[1727848828202,8.39,146.69,146.64,66.01121978]
[1727848828506,2.7279,146.65,146.64,66.01121978]
[1727848828704,8.39,146.69,146.64,66.01121978]
[1727848829110,2.7278,146.66,146.64,66.01121978]
[1727848830303,8.39,146.68,146.63,0.12502]
[1727848830514,8.39,146.67,146.63,0.12502]
[1727848830805,8.39,146.68,146.63,8.51502]
[1727848831007,2.7281,146.64,146.63,8.51502]
[1727848833317,2.7281,146.64,146.63,0.12502]
[1727848840821,8.39,146.64,146.55,1.3642]
[1727848841023,2.7292,146.59,146.56,11.1195]
[1727848842418,8.39,146.67,146.58,8.39]
[1727848842624,8.39,146.67,146.61,8.39]
[1727848842828,8.39,146.68,146.63,8.39]
[1727848843831,2.7281,146.64,146.63,8.39]
[1727848846717,2.7277,146.67,146.63,8.39]
[1727848846925,0.12502,146.69,146.65,8.39]
[1727848847424,0.12502,146.69,146.68,8.39]
[1727848848224,0.12502,146.69,146.68,11.1174]
[1727848848426,2.7267,146.72,146.68,8.39]
[1727848848623,2.7267,146.72,146.71,8.39]
[1727848849627,2.7267,146.72,146.69,14.4567]
[1727848853234,2.7268,146.71,146.69,14.4567]
[1727848853739,2.7267,146.72,146.69,14.4567]
[1727848854224,0.12502,146.75,146.69,14.4567]
[1727848854622,13.1,146.74,146.65,13.1]
[1727848854823,13.1,146.74,146.65,14.4662]
[1727848855023,2.7275,146.68,146.65,14.4662]
[1727848856731,13.1,146.74,146.65,14.4662]
[1727848857327,2.7277,146.67,146.65,14.4662]
[1727848858632,2.7277,146.67,146.65,1.3662]
[1727848858834,2.7278,146.66,146.65,1.3662]
[1727848859838,2.7277,146.67,146.65,1.3662]
[1727848860239,2.7278,146.66,146.65,1.3662]
[1727848862136,0.12502,146.75,146.63,0.12502]
[1727848862137,13.1,146.71,146.63,0.12502]
[1727848862331,2.7273,146.69,146.63,13.22502]
[1727848862534,13.1,146.73,146.63,13.22502]
[1727848863349,13.1,146.73,146.64,2.728]
[1727848863841,2.7275,146.68,146.64,2.728]
[1727848864146,13.1,146.73,146.64,2.728]
[1727848864846,13.1,146.73,146.65,2.7278]
[1727848865444,2.7275,146.68,146.65,2.7278]
[1727848866045,2.7271,146.7,146.66,16.52812684]
[1727848866349,13.22502,146.75,146.67,1.2609]
[1727848867344,2.7272,146.69,146.67,1.2609]
[1727848867946,0.12502,146.75,146.67,3.9884]
[1727848868149,0.12502,146.75,146.67,1.2609]
[1727848868352,0.12502,146.75,146.67,2.5441]
[1727848868947,2.727,146.7,146.67,5.2716]
[1727848869538,2.727,146.7,146.69,8.38]
[1727848870443,2.7269,146.71,146.69,8.38]
[1727848872942,2.727,146.7,146.69,8.38]
[1727848873645,2.7265,146.73,146.69,8.38]
[1727848873846,8.38,146.74,146.69,8.38]
[1727848874652,2.7269,146.71,146.69,8.38]
[1727848877655,8.50502,146.75,146.7,8.38]
[1727848877856,8.50502,146.75,146.67,2.5441]
[1727848877857,0.12502,146.75,146.72,8.38]
[1727848878165,0.12502,146.75,146.74,8.38]
[1727848880258,2.85112,146.75,146.74,8.38]
[1727848880452,0.12502,146.75,146.74,8.38]
[1727848880954,0.12502,146.75,146.72,8.38]
[1727848881660,2.7264,146.74,146.72,8.38]
[1727848883556,2.85112,146.75,146.73,8.38]
[1727848885958,0.12502,146.75,146.74,2.7263]
[1727848886255,0.12502,146.75,146.74,4.0201]
[1727848886462,0.12502,146.75,146.74,7.38421526]
[1727848886762,0.12502,146.75,146.74,4.65791526]
[1727848887161,2.85112,146.75,146.74,1.2938]
[1727848888253,0.12502,146.75,146.67,1.2832]
[1727848888457,2.7266,146.73,146.71,8.38]
[1727848889961,2.7263,146.74,146.7,2.727]
[1727848890155,0.12502,146.75,146.71,8.38]
[1727848890667,2.7265,146.73,146.71,8.38]
[1727848891465,2.7266,146.72,146.71,8.38]
[1727848892861,0.12502,146.75,146.71,8.38]
[1727848893053,2.7265,146.73,146.72,8.38]
[1727848893457,0.12502,146.75,146.72,8.38]
[1727848893656,2.7264,146.74,146.72,8.38]
[1727848896161,2.7265,146.73,146.72,8.38]
[1727848897867,2.7269,146.71,146.7,8.38]
[1727848902772,2.7267,146.72,146.7,8.38]
[1727848903261,8.50502,146.75,146.68,1.37]
[1727848903462,2.727,146.7,146.68,9.75]
[1727848910873,8.38,146.72,146.67,1.2832]
[1727848911072,2.7274,146.68,146.65,11.1079]
[1727848911977,8.38,146.72,146.67,8.38]
[1727848912661,2.7272,146.69,146.67,8.38]
[1727848913973,1.3576,146.74,146.68,11.1073]
[1727848914279,1.49002,146.75,146.71,8.38]
[1727848914280,0.12502,146.75,146.71,8.38]
[1727848914578,2.7266,146.73,146.71,8.38]
[1727848915574,8.38,146.74,146.7,8.38]
[1727848915975,2.7265,146.73,146.7,8.38]
[1727848916163,8.38,146.74,146.7,8.38]
[1727848916368,0.12502,146.75,146.7,8.38]
[1727848916564,2.7268,146.72,146.7,8.38]
[1727848925585,8.38,146.74,146.68,8.38]
[1727848925781,0.12502,146.75,146.67,4.7580023]
[1727848925782,0.12502,146.75,146.7,8.38]
[1727848926276,2.7266,146.73,146.7,8.38]
[1727848926478,2.7266,146.73,146.7,11.1069]
[1727848927678,2.7264,146.74,146.71,8.38]
[1727848928080,0.12502,146.75,146.73,8.38]
[1727848928380,2.85122,146.75,146.73,8.38]
[1727848932286,2.85122,146.75,146.74,8.38]
[1727848933291,2.85122,146.75,146.72,2.7265]
[1727848933292,2.85122,146.75,146.73,8.38]
[1727848934883,0.12502,146.75,146.74,11.1063]
[1727848936591,2.85112,146.75,146.74,8.38]
[1727848937588,0.12502,146.75,146.67,4.7580023]
[1727848937888,8.50502,146.75,146.7,8.38]
[1727848938291,2.7264,146.74,146.71,8.38]
[1727848939598,2.7264,146.74,146.71,11.1068]
[1727848939796,2.7264,146.74,146.71,8.38]
[1727848939994,2.7265,146.73,146.71,8.38]
[1727848940794,0.12502,146.75,146.71,8.38]
[1727848942285,2.7266,146.72,146.71,8.38]
[1727848942991,2.7269,146.71,146.7,8.38]
[1727848945587,2.7267,146.72,146.7,8.38]
[1727848945784,2.7267,146.72,146.71,8.38]
[1727848945997,2.7265,146.73,146.71,8.38]
[1727848950694,0.12502,146.75,146.71,8.38]
[1727848950899,2.7268,146.71,146.7,8.38]
[1727848951103,0.12502,146.75,146.7,8.38]
[1727848951802,2.7267,146.72,146.7,8.38]
[1727848952006,2.7267,146.72,146.71,8.38]
[1727848954703,0.12502,146.75,146.71,8.38]
[1727848955007,0.12502,146.75,146.73,8.38]
[1727848955800,2.85122,146.75,146.73,8.38]
[1727848956002,0.12502,146.75,146.72,11.1066]
[1727848956203,0.12502,146.75,146.71,8.38]
[1727848956403,2.7264,146.74,146.71,11.1068]
[1727848956602,0.12502,146.75,146.71,8.38]
[1727848956807,2.7264,146.74,146.7,8.38]
[1727848957012,8.50502,146.75,146.7,8.38]
[1727848957405,2.7267,146.72,146.7,8.38]
[1727848958410,8.50502,146.75,146.7,8.38]
[1727848958612,2.7268,146.71,146.7,8.38]
[1727848959605,2.7267,146.72,146.7,8.38]
[1727848966121,8.38,146.74,146.67,4.7580023]
[1727848966313,2.7271,146.7,146.67,15.8655023]
[1727848967021,2.7271,146.7,146.67,12.4824]
[1727848967618,2.7272,146.69,146.67,1.3749]
[1727848967820,8.38,146.7,146.64,60.26740488]
[1727848968121,8.38,146.7,146.64,68.64740488]
[1727848968516,2.7277,146.67,146.64,68.64740488]
[1727848969116,2.7277,146.67,146.64,68.72810488]
[1727848969318,8.38,146.68,146.63,0.12502]
[1727848969623,1.2702,146.74,146.63,0.12502]
[1727848969624,8.38,146.66,146.63,0.12502]
[1727848970226,2.7281,146.64,146.63,0.12502]
[1727848970423,8.38,146.66,146.63,0.12502]
[1727848971322,2.728,146.65,146.63,0.12502]
[1727848973636,8.38,146.66,146.63,0.12502]
[1727848973839,2.7279,146.65,146.63,0.12502]
[1727848974030,8.38,146.66,146.63,0.12502]
[1727848974634,2.7281,146.64,146.63,0.12502]
[1727848980940,2.7277,146.67,146.63,11.23322]
[1727848982335,8.38,146.69,146.63,8.50502]
[1727848982541,2.7273,146.69,146.65,11.1078]
[1727848983341,74.8902,146.74,146.63,0.12502]
[1727848983342,74.8902,146.74,146.66,8.38]
[1727848983545,2.7271,146.7,146.67,2.7275]
[1727848984347,2.7269,146.71,146.68,8.38]
[1727848984542,8.38,146.73,146.68,11.1074]